bitfinex/quotes_ETHUSD_20240824
["timestamp","ask_amount","ask_price","bid_price","bid_amount"]
[1724506597509,1.89929141,2766.4,2766.3,3.61493]
[1724506607123,1.8994351,2766.4,2766.3,3.61493]
[1724506610528,1.51961584,2766.4,2766.3,13.88020136]
[1724506610905,0.75972378,2766.5,2766.4,9.6145]
[1724506611017,1.51961584,2766.7,2766.5,3.61467]
[1724506611356,1.51961584,2766.6,2766.5,3.61467]
[1724506611538,1.51961584,2766.6,2766.5,6.61467]
[1724506611750,1.51961584,2766.6,2766.5,8.06417414]
[1724506612442,1.51961584,2766.6,2766.5,6.61467]
[1724506614361,1.51961584,2766.6,2766.5,3.0]
[1724506614518,1.8994351,2766.6,2766.4,3.61479]
[1724506614719,1.5187368,2766.5,2766.4,3.61479]
[1724506614941,1.5187368,2766.5,2766.4,6.61479]
[1724506617440,1.5187368,2766.5,2766.4,11.61759414]
[1724506617640,1.5187368,2766.6,2766.5,7.22934]
[1724506617841,1.1389108,2766.6,2766.5,8.49478136]
[1724506618787,1.5187368,2766.7,2766.6,3.61454]
[1724506618959,1.5187368,2766.7,2766.6,7.22908]
[1724506621891,1.5187368,2766.7,2766.6,11.14072255]
[1724506622063,0.7590025,2766.7,2766.6,17.75526255]
[1724506622261,0.7590025,2766.9,2766.8,2.3849]
[1724506622471,0.7590025,2766.9,2766.8,14.93150662]
[1724506623187,0.7590025,2767.0,2766.9,7.2283]
[1724506623391,0.7590025,2767.0,2766.9,8.49374136]
[1724506624250,0.7590025,2767.1,2767.0,3.61402]
[1724506624454,0.7590025,2767.1,2767.0,7.22804]
[1724506624655,0.7590025,2767.1,2767.0,8.72113866]
[1724506625998,1.13850698,2767.3,2767.1,3.61389]
[1724506626305,0.75788364,2767.2,2767.1,7.22778]
[1724506626460,0.75788364,2767.2,2767.1,8.49322136]
[1724506627569,0.75788364,2767.3,2767.2,3.61376]
[1724506629597,0.75788364,2767.4,2767.2,3.61376]
[1724506629896,0.75788364,2767.4,2767.3,3.61363]
[1724506631559,1.13850698,2767.6,2767.3,3.61363]
[1724506631560,0.75788364,2767.5,2767.3,3.61363]
[1724506632096,1.13850698,2767.6,2767.3,3.61363]
[1724506632097,0.75788364,2767.4,2767.3,3.61363]
[1724506632405,0.75788364,2767.5,2767.3,3.61363]
[1724506634204,0.75788364,2767.5,2767.4,6.0221]
[1724506634521,0.75788364,2767.9,2767.8,3.61297]
[1724506634859,0.75788364,2768.0,2767.8,3.61297]
[1724506635060,0.75788364,2768.0,2767.9,3.61284]
[1724506635340,1.26869828,2768.2,2767.8,3.61287]
[1724506635341,0.75788364,2768.1,2767.8,3.61287]
[1724506635968,0.75788364,2768.1,2767.9,3.61281]
[1724506636109,0.75788364,2768.0,2767.9,3.61281]
[1724506636310,0.75788364,2768.1,2767.8,3.61291]
[1724506636507,1.26869828,2768.2,2767.6,3.61312]
[1724506636508,3.03988364,2768.0,2767.6,3.61312]
[1724506636728,3.47074183,2768.0,2767.6,3.61312]
[1724506636969,0.75788364,2767.9,2767.6,3.61312]
[1724506637318,3.03988364,2768.0,2767.6,3.61312]
[1724506638631,3.0385858,2768.0,2767.6,3.61312]
[1724506639260,3.0385858,2768.0,2767.6,7.22627]
[1724506639616,3.0385858,2768.0,2767.6,3.61312]
[1724506639817,3.0385858,2768.0,2767.6,7.22627]
[1724506640017,3.0385858,2768.0,2767.6,3.61312]
[1724506640233,3.0385858,2768.0,2767.6,7.22628]
[1724506640667,2.28070216,2768.0,2767.6,7.22628]
[1724506643995,2.28070216,2768.0,2767.7,3.61309]
[1724506645061,0.75788364,2768.1,2767.8,3.61296]
[1724506645259,0.75788364,2768.1,2767.9,3.61278]
[1724506645599,0.88807494,2768.2,2767.9,3.61278]
[1724506646697,0.88807494,2768.2,2768.0,3.61269]
[1724506646698,0.1301913,2768.2,2768.0,3.61269]
[1724506649356,0.1301913,2768.2,2768.1,3.61258]
[1724506650168,0.1301913,2768.2,2768.1,7.22516]
[1724506655761,0.1301913,2768.2,2768.1,16.21588277]
[1724506655961,0.1301913,2768.2,2768.1,16.14364]
[1724506656178,0.1301913,2768.2,2768.1,13.79650136]
[1724506656412,0.1301913,2768.2,2768.1,15.62234101]
[1724506659693,0.1301913,2768.2,2768.1,19.23492101]
[1724506659890,0.1301913,2768.2,2768.1,15.62234101]
[1724506660106,0.1301913,2768.2,2768.1,19.23492101]
[1724506660351,0.1301913,2768.2,2768.1,15.62234101]
[1724506660495,0.1301913,2768.2,2768.1,19.23492101]
[1724506660702,0.1301913,2768.2,2768.1,15.62234101]
[1724506670742,0.1301913,2768.2,2768.1,4.82583965]
[1724506671035,2.3511,2768.1,2767.6,3.61322]
[1724506671292,0.75788364,2768.0,2767.0,1.49309866]
[1724506671434,3.10898364,2767.8,2767.1,3.6138]
[1724506671634,3.10898364,2767.8,2767.3,3.61352]
[1724506672551,0.75788364,2767.7,2767.4,3.61342]
[1724506672750,4.24749062,2767.8,2767.5,3.61335]
[1724506673035,0.75788364,2767.7,2767.5,3.61335]
[1724506673574,0.75788364,2767.7,2767.5,3.61328]
[1724506673873,0.75788364,2767.7,2767.5,7.22657]
[1724506674070,0.75788364,2767.7,2767.5,3.61328]
[1724506674992,3.10898364,2767.8,2767.5,3.61328]
[1724506675200,3.10898364,2767.8,2767.5,7.22657]
[1724506675495,3.10898364,2767.8,2767.5,7.22658]
[1724506676264,3.10898364,2767.8,2767.5,3.61328]
[1724506676853,3.10898364,2767.8,2767.5,7.22656]
[1724506677793,3.10898364,2767.8,2767.6,3.61323]
[1724506679093,0.75788364,2767.8,2767.7,3.6131]
[1724506679295,0.75788364,2767.9,2767.8,3.61297]
[1724506680197,1.13850698,2768.0,2767.6,3.61311]
[1724506680403,0.75635502,2767.8,2767.7,3.61309]
[1724506682191,0.75635502,2767.9,2767.7,3.61309]
[1724506682396,0.75635502,2767.9,2767.7,3.61302]
[1724506683292,0.75635502,2767.8,2767.7,3.61302]
[1724506683492,0.75635502,2767.9,2767.7,3.61302]
[1724506683994,0.75635502,2767.8,2767.7,3.61302]
[1724506684295,0.75635502,2767.9,2767.7,3.61302]
[1724506687196,0.75635502,2767.9,2767.7,7.22604]
[1724506687383,0.75635502,2767.9,2767.7,3.61302]
[1724506689363,0.75635502,2767.8,2767.7,3.61302]
[1724506689704,0.75635502,2767.8,2767.6,3.61323]
[1724506690225,0.75635502,2767.8,2767.7,3.6131]
[1724506690881,1.13850698,2768.0,2767.7,3.6131]
[1724506690882,0.75635502,2767.9,2767.7,3.6131]
[1724506693017,0.75635502,2767.9,2767.5,3.61326]
[1724506693220,0.75635502,2767.8,2767.5,3.61326]
[1724506693524,0.75635502,2767.9,2767.6,3.61322]
[1724506694316,0.75635502,2767.9,2767.5,3.61326]
[1724506694317,0.75635502,2767.8,2767.3,3.61354]
[1724506694484,3.01375502,2767.8,2767.3,3.61354]
[1724506694885,0.75635502,2767.7,2767.3,3.61354]
[1724506695094,0.75635502,2767.7,2767.3,7.2271]
[1724506695301,0.75635502,2767.7,2767.3,3.61354]
[1724506696523,0.75635502,2767.7,2767.3,7.2271]
[1724506696722,0.75635502,2767.7,2767.3,3.61354]
[1724506697692,0.75635502,2767.7,2767.3,7.2271]
[1724506698857,0.75635502,2767.7,2767.4,3.61347]
[1724506700124,0.75635502,2767.7,2767.3,3.61362]
[1724506700325,3.01375502,2767.5,2767.1,11.05379]
[1724506700540,3.01375502,2767.5,2767.1,3.61379]
[1724506700701,0.75635502,2767.3,2766.9,3.61414]
[1724506700900,0.75635502,2767.3,2766.9,7.22822]
[1724506701123,1.30635502,2767.4,2767.0,3.61399]
[1724506702046,0.75635502,2767.4,2767.3,3.61363]
[1724506704937,0.75635502,2767.6,2767.3,3.61363]
[1724506705131,0.75635502,2767.6,2767.4,3.6135]
[1724506706063,0.75635502,2767.6,2767.2,3.61369]
[1724506706222,0.75635502,2767.5,2767.2,3.61369]
[1724506706815,0.75635502,2767.4,2767.2,3.61369]
[1724506712533,0.75635502,2767.3,2767.2,3.61369]
[1724506714426,1.13850698,2767.4,2767.2,3.61369]
[1724506715475,1.13850698,2767.3,2767.2,3.61369]
[1724506716332,1.13850698,2767.4,2767.2,3.61369]
[1724506716566,1.13850698,2767.3,2767.2,3.61369]
[1724506717030,1.5187368,2767.4,2767.2,3.61369]
[1724506718434,1.1371979,2767.4,2767.2,3.61369]
[1724506718867,1.1371979,2767.4,2767.3,3.61363]
[1724506719032,1.5187368,2767.5,2767.3,3.61363]
[1724506719566,2.08529881,2767.5,2767.3,3.61363]
[1724506720672,1.13716113,2767.4,2767.3,3.61363]
[1724506720849,2.08529881,2767.5,2767.3,3.61363]
[1724506721059,1.13716816,2767.4,2767.3,3.61363]
[1724506721860,1.13716816,2767.4,2767.2,3.61375]
[1724506722386,1.13716816,2767.3,2767.2,3.61375]
[1724506723177,1.13716816,2767.3,2767.1,5.93768]
[1724506723341,1.13716816,2767.2,2767.1,5.93768]
[1724506724374,1.13716816,2767.2,2767.0,3.614]
[1724506724580,0.75816943,2767.1,2767.0,3.614]
[1724506731335,1.13716816,2767.2,2767.0,3.614]
[1724506732208,1.13716816,2767.2,2767.1,3.61389]
[1724506733267,1.5187368,2767.3,2767.1,3.61389]
[1724506734614,1.5187368,2767.2,2766.9,3.61405]
[1724506734776,0.75857948,2767.0,2766.9,3.61405]
[1724506735125,1.13787878,2767.1,2766.9,3.61405]
[1724506735492,1.13787878,2767.0,2766.9,3.61405]
[1724506736693,1.13787878,2767.0,2766.6,10.44]
[1724506736694,1.78439836,2767.0,2766.6,3.0]
[1724506736894,0.75874896,2766.7,2766.6,3.0]
[1724506737218,1.13812344,2766.8,2766.5,3.61459]
[1724506737405,1.138359,2766.6,2766.5,3.61459]
[1724506738217,1.13810867,2766.6,2766.4,3.6148]
[1724506738389,1.13789294,2766.5,2766.4,3.6148]
[1724506738804,1.13789294,2766.6,2766.4,3.6148]
[1724506739009,0.75856768,2766.5,2766.4,3.6148]
[1724506739313,1.13789294,2766.6,2766.4,3.6148]
[1724506740322,1.13789294,2766.6,2766.4,3.61473]
[1724506740530,0.75855397,2766.5,2766.4,3.61473]
[1724506744224,0.75855397,2766.6,2766.5,3.61467]
[1724506744602,1.13789294,2766.7,2766.5,3.61467]
[1724506746370,1.13789294,2766.7,2766.6,3.61454]
[1724506746530,1.13789294,2766.7,2766.6,5.97604]
[1724506747239,1.13789294,2766.8,2766.7,3.61441]
[1724506747631,1.5187368,2766.9,2766.7,3.61441]
[1724506748207,1.13697476,2766.8,2766.7,3.61441]
[1724506748615,1.5187368,2766.9,2766.6,5.97604]
[1724506748815,1.13694388,2766.7,2766.6,5.97604]
[1724506749224,1.13694388,2766.8,2766.6,5.97604]
[1724506752010,0.757847,2766.7,2766.6,5.97604]
[1724506754451,1.13694388,2766.8,2766.6,2.3615]
[1724506755245,1.13694388,2766.8,2766.6,5.97603]
[1724506756034,0.75771705,2766.7,2766.6,5.97603]
[1724506757452,0.75771705,2766.7,2766.6,3.61453]
[1724506758136,1.13694388,2766.8,2766.6,3.61453]
[1724506758447,0.75765465,2766.7,2766.6,3.61453]
[1724506767564,1.13694388,2766.8,2766.6,3.61453]
[1724506768468,1.13694388,2766.8,2766.6,3.61448]
[1724506769447,0.7580136,2766.7,2766.6,3.61448]
[1724506770031,0.7580136,2766.7,2766.6,5.97148]
[1724506771937,1.13694388,2766.8,2766.4,3.6147]
[1724506772141,0.75816789,2766.6,2766.4,3.6147]
[1724506772361,0.75816789,2766.5,2766.4,3.6147]
[1724506772870,0.75816789,2766.5,2766.3,3.61489]
[1724506773070,0.75816789,2766.5,2766.1,10.85264136]
[1724506773243,0.75816789,2766.4,2766.2,3.0]
[1724506773573,0.75816789,2766.4,2766.2,6.61505]
[1724506774969,0.75816789,2766.4,2766.3,3.61493]
[1724506778040,1.13694388,2766.5,2766.4,3.6148]
[1724506779275,1.5187368,2766.6,2766.4,3.6148]
[1724506779476,1.5187368,2766.5,2766.4,3.6148]
[1724506779646,1.5187368,2766.6,2766.4,3.6148]
[1724506779998,1.5187368,2766.5,2766.4,3.6148]
[1724506780206,1.5187368,2766.5,2766.2,3.61497]
[1724506780354,3.8679368,2766.5,2766.1,3.61511]
[1724506780555,2.3492,2766.1,2765.4,2.2624]
[1724506780777,0.75920248,2765.7,2765.6,3.61573]
[1724506781162,0.75920248,2765.7,2765.5,3.61598]
[1724506781163,2.65720868,2765.8,2765.5,3.61591]
[1724506781367,0.75878586,2765.6,2765.5,3.61591]
[1724506781656,0.75891239,2765.6,2765.5,3.61591]
[1724506781965,1.13880372,2765.7,2765.5,3.61591]
[1724506782166,1.13772617,2765.7,2765.6,3.61585]
[1724506782779,1.13772617,2765.7,2765.4,3.61604]
[1724506783096,0.75858641,2765.5,2765.4,3.61604]
[1724506783391,0.75858641,2765.6,2765.5,3.61598]
[1724506784294,4.33081258,2765.7,2765.5,3.61598]
[1724506784475,0.75858641,2765.6,2765.5,3.61598]
[1724506785159,0.75858641,2765.7,2765.5,7.23187]
[1724506785515,0.75858641,2765.8,2765.6,3.61585]
[1724506787762,0.75858641,2765.8,2765.4,1.26544136]
[1724506788215,0.75858641,2765.8,2765.5,3.61588]
[1724506788375,0.75858641,2765.8,2765.5,7.23178]
[1724506788908,0.75858641,2765.8,2765.6,3.61584]
[1724506789065,0.75858641,2765.8,2765.5,7.23175]
[1724506791174,0.75858641,2765.9,2765.5,7.23178]
[1724506793306,0.75858641,2765.9,2765.5,6.04557]
[1724506793670,0.75858641,2765.9,2765.5,9.66146]
[1724506793906,0.75858641,2765.9,2765.5,6.04557]
[1724506794221,0.75858641,2766.0,2765.5,6.04557]
[1724506794569,0.75858641,2765.9,2765.5,3.61587]
[1724506794769,6.01841753,2766.1,2765.5,3.61587]
[1724506794770,0.75858641,2766.0,2765.5,3.61587]
[1724506795003,0.75858641,2765.9,2765.5,3.61587]
[1724506795507,1.77721199,2766.0,2765.5,3.61587]
[1724506796169,0.75858641,2766.0,2765.6,2.4297]
[1724506796371,0.75858641,2766.0,2765.6,6.04554]
[1724506796868,0.75858641,2766.0,2765.6,2.4297]
[1724506797074,0.75858641,2766.0,2765.7,3.6157]
[1724506797685,4.75291617,2766.2,2765.7,3.6157]
[1724506797686,0.75858641,2766.1,2765.7,3.6157]
[1724506797879,0.75858641,2766.0,2765.7,3.6157]
[1724506800200,0.75858641,2766.1,2765.7,3.6157]
[1724506800401,0.75858641,2766.0,2765.7,3.6157]
[1724506801213,0.75858641,2766.0,2765.5,3.61585]
[1724506801394,0.75858641,2765.9,2765.5,7.23176]
[1724506801713,0.75858641,2765.9,2765.5,3.61585]
[1724506802718,0.75858641,2765.9,2765.5,7.23176]
[1724506803226,0.75858641,2765.9,2765.5,3.61585]
[1724506803426,0.75858641,2765.9,2765.5,7.23176]
[1724506804025,0.75858641,2765.9,2765.5,7.23175]
[1724506804325,0.75858641,2765.9,2765.5,3.61585]
[1724506805325,1.16263298,2765.9,2765.5,3.61585]
[1724506806282,2.42807434,2765.9,2765.5,3.61585]
[1724506806901,0.75858641,2765.8,2765.5,3.61585]
[1724506808227,0.75858641,2765.8,2765.3,3.61615]
[1724506808528,0.75858641,2765.8,2765.1,7.88186136]
[1724506808529,0.75858641,2765.6,2765.1,6.61642]
[1724506810308,0.75858641,2765.6,2765.1,10.23285]
[1724506810507,0.75858641,2765.6,2765.2,3.61632]
[1724506810704,0.75858641,2765.7,2765.3,3.61622]
[1724506812296,0.75858641,2765.6,2765.3,3.61622]
[1724506814607,3.67783502,2765.6,2765.1,6.61638]
[1724506815012,3.67783502,2765.6,2765.2,3.61634]
[1724506815216,0.75858641,2765.5,2765.1,6.61638]
[1724506815423,0.75858641,2765.5,2765.1,3.61638]
[1724506816606,1.26181952,2765.5,2765.0,3.61653]
[1724506816816,0.75858641,2765.4,2765.0,3.61653]
[1724506817022,0.75858641,2765.4,2764.9,7.44]
[1724506817023,3.11088641,2765.3,2764.9,11.05675]
[1724506817334,0.75858641,2765.2,2764.9,7.44]
[1724506817528,0.75858641,2765.2,2764.8,3.61686]
[1724506817529,1.16263298,2765.2,2764.6,9.53143]
[1724506817704,1.16263298,2765.2,2764.6,3.61703]
[1724506817705,2.02402777,2765.1,2764.6,3.61703]
[1724506818346,0.75858641,2765.0,2764.6,3.61703]
[1724506818562,3.11088641,2764.9,2764.6,3.61703]
[1724506818760,2.3523,2764.9,2764.6,3.61703]
[1724506819109,3.11088641,2764.9,2764.6,3.61703]
[1724506819561,3.11088641,2764.9,2764.4,7.23464]
[1724506819767,3.11088641,2764.9,2764.5,3.61724]
[1724506820408,0.75858641,2764.8,2764.4,3.61729]
[1724506820607,0.75858641,2764.6,2764.2,3.61767]
[1724506820846,0.75858641,2764.7,2764.3,3.61754]
[1724506821349,0.75858641,2764.6,2764.3,3.61754]
[1724506821563,1.13772617,2764.8,2764.3,3.61754]
[1724506821564,0.75858641,2764.7,2764.3,3.61754]
[1724506821765,0.75858641,2764.6,2764.3,3.61754]
[1724506822681,0.75858641,2764.6,2764.1,3.61772]
[1724506822970,0.75858641,2764.5,2764.2,3.61765]
[1724506823186,3.11088641,2764.5,2764.1,3.61772]
[1724506824567,0.75858641,2764.5,2764.1,3.61772]
[1724506827131,0.75858641,2764.6,2764.1,3.61772]
[1724506828365,0.75858641,2764.6,2764.1,7.23546]
[1724506828669,0.75858641,2764.6,2764.1,4.870996]
[1724506828843,8.08193777,2764.7,2764.2,3.61766]
[1724506829081,4.46482777,2764.7,2764.2,3.61766]
[1724506830079,3.19938641,2764.7,2764.2,3.61766]
[1724506831376,0.75858641,2764.7,2764.2,5.96676]
[1724506831888,7.45,2764.8,2764.5,3.61722]
[1724506832916,7.45,2764.8,2764.4,3.61741]
[1724506833131,7.45,2764.8,2764.3,3.61748]
[1724506833425,13.09099777,2764.8,2764.2,3.61766]
[1724506833631,13.09099777,2764.8,2764.1,3.61773]
[1724506833632,3.61705,2764.7,2764.1,3.61773]
[1724506833804,6.43505,2764.6,2764.0,5.96704]
[1724506834803,2.8178,2764.6,2764.1,3.6178]
[1724506835793,2.8178,2764.6,2764.1,7.23554]
[1724506836023,2.8178,2764.6,2764.1,3.61774]
[1724506836556,2.8178,2764.6,2764.1,7.23547]
[1724506836728,2.8178,2764.6,2764.1,3.61773]
[1724506837232,2.8178,2764.6,2764.2,3.61767]
[1724506837928,2.2678,2764.6,2764.3,3.61753]
[1724506838137,2.2678,2764.6,2764.2,3.61764]
[1724506839634,2.77103311,2764.6,2764.1,3.61778]
[1724506839997,8.41222088,2764.6,2763.9,3.0]
[1724506840205,8.41222088,2764.6,2764.0,3.0]
[1724506840430,8.41222088,2764.6,2764.0,6.61792]
[1724506840629,0.40404657,2764.5,2764.0,6.61792]
[1724506841037,4.02140657,2764.5,2763.8,5.96721]
[1724506841261,2.2678,2764.2,2763.8,3.61811]
[1724506841448,3.53324136,2764.2,2763.6,3.61835]
[1724506841641,3.53324136,2764.2,2763.7,6.61832]
[1724506841948,8.18026827,2764.2,2763.6,7.23674]
[1724506842146,8.18026827,2764.2,2763.6,3.61835]
[1724506845053,3.68214136,2764.0,2763.4,3.61863]
[1724506845232,2.4167,2763.9,2763.4,3.61863]
[1724506845431,0.36821414,2763.8,2763.4,3.61863]
[1724506845763,2.4167,2763.9,2763.4,3.61863]
[1724506846269,6.0348,2763.9,2763.4,3.61863]
[1724506847552,6.0348,2763.9,2763.2,7.23779]
[1724506847753,6.0348,2763.9,2763.3,3.61882]
[1724506848629,7.19204136,2763.8,2763.2,3.61889]
[1724506848875,4.17732136,2763.8,2763.3,3.61885]
[1724506851266,7.19183136,2764.0,2763.4,7.23734]
[1724506851597,0.55,2763.9,2763.4,3.61866]
[1724506851771,0.55,2763.9,2763.2,6.11354]
[1724506851772,7.78628,2763.9,2763.2,9.73242]
[1724506851998,2.3084,2763.8,2763.2,7.23782]
[1724506852399,3.15845378,2763.8,2763.2,7.23782]
[1724506852875,4.42389514,2763.8,2763.2,7.23782]
[1724506854254,1.26544136,2763.6,2762.9,6.61925]
[1724506854467,4.88397136,2763.6,2763.0,3.61917]
[1724506854854,2.2608,2763.5,2763.0,3.61917]
[1724506856283,6.95573214,2763.5,2762.9,3.61925]
[1724506856483,6.95573214,2763.5,2762.9,7.23855]
[1724506856642,6.95573214,2763.5,2762.9,3.61925]
[1724506857043,10.57443214,2763.5,2762.9,3.61925]
[1724506858148,2.2608,2763.3,2762.8,3.6195]
[1724506858517,2.2608,2763.3,2762.9,3.61937]
[1724506859601,2.2608,2763.3,2762.9,7.23868]
[1724506859774,2.2608,2763.3,2762.9,3.61931]
[1724506860214,3.01938641,2763.5,2762.9,6.09081]
[1724506860508,2.2608,2763.5,2763.1,3.61903]
[1724506861268,3.01938641,2763.5,2763.1,3.61903]
[1724506861469,2.2608,2763.5,2763.1,3.61903]
[1724506861698,0.75858641,2763.6,2762.9,6.09079]
[1724506861906,0.75858641,2763.6,2763.2,3.61893]
[1724506864129,0.75858641,2763.5,2763.2,3.61893]
[1724506865432,0.75858641,2763.6,2763.3,3.61884]
[1724506865629,0.75858641,2763.6,2763.2,3.61891]
[1724506865831,0.75858641,2763.5,2763.2,7.23783]
[1724506866922,0.75858641,2763.5,2763.3,3.61885]
[1724506867231,0.75858641,2763.5,2763.1,3.61905]
[1724506867596,3.21148641,2763.5,2763.1,3.61905]
[1724506868506,5.91391766,2763.5,2763.0,3.61915]
[1724506868692,0.75858641,2763.4,2763.0,3.61915]
[1724506869595,0.75858641,2763.4,2763.0,7.23832]
[1724506869808,5.91391766,2763.5,2763.1,3.61911]
[1724506870536,0.75858641,2763.4,2763.1,3.61911]
[1724506871403,4.47692777,2763.5,2763.1,3.61911]
[1724506871647,5.91392066,2763.5,2763.1,3.61911]
[1724506872302,0.75858641,2763.4,2763.1,3.61911]
[1724506872639,5.91392066,2763.5,2763.1,3.61911]
[1724506874504,0.75858641,2763.4,2763.1,3.61911]
[1724506875147,3.61877,2763.4,2762.9,3.61937]
[1724506875456,4.87699011,2763.4,2762.9,3.61937]
[1724506876819,1.25822011,2763.4,2763.0,3.61916]
[1724506877033,0.75858641,2763.4,2763.0,3.61916]
[1724506877723,0.75858641,2763.3,2763.0,3.61916]
[1724506879429,0.75858641,2763.2,2763.0,3.61916]
[1724506879830,1.89631258,2763.3,2763.0,3.61916]
[1724506880031,0.75858641,2763.3,2763.0,3.61916]
[1724506880258,0.75858641,2763.2,2763.0,3.61916]
[1724506881460,0.75858641,2763.3,2763.0,3.61916]
[1724506881692,0.75858641,2763.3,2763.2,3.61899]
[1724506883468,1.13772617,2763.3,2763.1,3.61903]
[1724506883626,0.75836435,2763.2,2763.1,3.61903]
[1724506884849,1.13772617,2763.3,2763.1,3.61903]
[1724506885230,1.13772617,2763.2,2763.1,3.61903]
[1724506889262,1.13908329,2763.1,2763.0,5.96855]
[1724506890083,0.75946431,2763.2,2763.1,3.61912]
[1724506890415,1.13908329,2763.3,2763.1,3.61912]
[1724506891115,1.13908329,2763.3,2763.2,3.61899]
[1724506891314,1.51840496,2763.4,2763.2,3.61899]
[1724506891604,1.51840496,2763.4,2763.3,3.61886]
[1724506893781,1.51840496,2763.4,2763.3,5.96816]
[1724506894003,1.51840496,2763.4,2763.1,7.23812]
[1724506894216,1.13975553,2763.2,2763.1,3.619]
[1724506894424,1.51967404,2763.2,2763.1,3.619]
[1724506894592,1.51967404,2763.3,2763.1,7.23805]
[1724506894787,1.13985807,2763.2,2763.1,7.23805]
[1724506894993,1.51967404,2763.3,2763.1,3.619]
[1724506895213,1.1398526,2763.2,2763.1,3.619]
[1724506896006,1.51967404,2763.3,2763.1,3.619]
[1724506896202,1.89974365,2763.4,2763.2,3.61899]
[1724506896603,1.52005701,2763.3,2763.2,3.61891]
[1724506896782,1.5200561,2763.3,2763.2,3.61891]
[1724506896985,1.52004279,2763.3,2763.2,3.61891]
[1724506897197,1.89974365,2763.4,2763.2,3.61891]
[1724506897827,1.52018466,2763.3,2763.2,3.61891]
[1724506898026,1.89974365,2763.4,2763.2,3.61891]
[1724506898801,2.27969239,2763.4,2763.2,3.61891]
[1724506899002,2.28063257,2763.5,2763.0,7.23831]
[1724506899224,1.90052735,2763.2,2763.1,3.6191]
[1724506899419,1.90052735,2763.3,2763.1,3.6191]
[1724506899793,1.52050285,2763.2,2763.1,3.6191]
[1724506900226,1.90052735,2763.3,2763.1,3.6191]
[1724506901906,1.52068657,2763.2,2763.1,3.6191]
[1724506902102,1.90052735,2763.3,2763.1,3.6191]
[1724506902914,1.52071474,2763.2,2763.1,3.6191]
[1724506903232,1.90052735,2763.3,2763.1,3.6191]
[1724506905398,1.90052735,2763.3,2763.2,3.61899]
[1724506906833,1.90052735,2763.3,2763.2,5.92309]
[1724506907035,1.52068382,2763.3,2763.2,10.134389]
[1724506908234,1.52068382,2763.3,2763.2,9.54208]
[1724506908628,1.90052735,2763.5,2763.3,3.61886]
[1724506908629,1.52068382,2763.4,2763.3,3.61886]
[1724506915339,1.52068382,2763.5,2763.4,5.97593]
[1724506915570,1.1399596,2763.5,2763.4,9.59466]
[1724506917205,1.1399596,2763.5,2763.4,10.68067014]
[1724506918301,1.1399596,2763.6,2763.5,7.23718]
[1724506919362,1.1399596,2763.6,2762.9,3.0]
[1724506919363,1.1399596,2763.6,2763.1,2.3572]
[1724506919677,0.75958614,2763.4,2763.3,7.23772]
[1724506920077,0.75958614,2763.4,2763.3,10.23772]
[1724506920664,0.75958614,2763.4,2763.3,12.59492]
[1724506920881,0.75958614,2763.4,2763.3,14.10000234]
[1724506922781,0.75958614,2763.4,2763.3,12.59492]
[1724506924179,0.75958614,2763.4,2763.3,10.23772]
[1724506924379,1.1399596,2763.5,2763.4,3.61873]
[1724506924585,1.52068382,2763.6,2763.4,3.61873]
[1724506924771,1.52068382,2763.5,2763.4,3.61873]
[1724506927260,1.52068382,2763.6,2763.4,3.61873]
[1724506927898,1.52068382,2763.5,2763.4,3.61873]
[1724506928395,1.52068382,2763.6,2763.4,3.61873]
[1724506928597,1.52068382,2763.5,2763.4,3.61873]
[1724506932307,1.26544136,2763.8,2763.4,3.61873]
[1724506932467,0.73133314,2763.7,2763.4,3.61873]
[1724506932670,1.89895215,2763.6,2763.4,3.61873]
[1724506932914,1.89895215,2763.6,2763.2,3.61889]
[1724506933085,2.4298,2763.5,2763.0,3.61917]
[1724506933283,0.92127335,2763.4,2763.0,3.61917]
[1724506933488,0.92127335,2763.4,2762.8,14.67881]
[1724506933890,4.54000335,2763.4,2762.9,3.61936]
[1724506934299,5.80544471,2763.4,2762.9,3.61936]
[1724506936130,0.92127335,2763.4,2763.0,3.61922]
[1724506936310,0.92127335,2763.4,2763.0,3.61918]
[1724506937428,0.92127335,2763.4,2763.1,3.6191]
[1724506938233,3.69524136,2763.7,2763.2,7.23789]
[1724506938414,3.69524136,2763.7,2763.2,3.61891]
[1724506939123,2.27913705,2763.9,2763.5,3.61855]
[1724506939324,1.89901121,2763.7,2763.6,3.61846]
[1724506939521,4.70893705,2764.0,2763.7,3.61833]
[1724506939522,1.89901121,2763.8,2763.7,3.61833]
[1724506941225,1.89901121,2763.8,2763.7,7.23666]
[1724506941421,1.89901121,2763.9,2763.8,3.6182]
[1724506942443,1.89871675,2763.9,2763.7,3.61833]
[1724506942644,1.89871675,2763.8,2763.7,3.61833]
[1724506942953,3.69524136,2763.8,2763.5,3.61851]
[1724506943149,1.51907169,2763.6,2763.5,3.61851]
[1724506943447,1.89883961,2763.7,2763.5,3.61851]
[1724506943775,1.51911647,2763.6,2763.5,3.61851]
[1724506944051,1.89883961,2763.7,2763.5,3.61851]
[1724506944360,2.72786549,2763.7,2763.5,3.61851]
[1724506945225,1.51919798,2763.6,2763.5,3.61851]
[1724506946262,1.51935073,2763.6,2763.5,3.61851]
[1724506946661,1.89883961,2763.7,2763.5,3.61851]
[1724506947970,1.89883961,2763.6,2763.5,3.61851]
[1724506951273,1.89992585,2763.6,2763.5,3.61851]
[1724506951772,1.89993809,2763.6,2763.5,3.61851]
[1724506952127,0.56735219,2763.7,2763.5,3.61851]
[1724506952326,1.26337588,2763.7,2763.5,3.61851]
[1724506952528,3.54330154,2763.7,2763.5,3.61851]
[1724506953438,1.26337588,2763.7,2763.5,3.61851]
[1724506953642,3.54330154,2763.7,2763.5,3.61851]
[1724506955576,1.26337588,2763.7,2763.5,3.61851]
[1724506956969,3.5435458,2763.7,2763.5,3.61851]
[1724506957347,1.26337588,2763.7,2763.5,3.61851]
[1724506958359,3.5435458,2763.7,2763.5,3.61851]
[1724506960785,3.5435458,2763.7,2763.3,3.61873]
[1724506960941,1.52002234,2763.4,2763.3,7.23759]
[1724506961468,1.52002234,2763.4,2763.3,10.687749]
[1724506964351,1.52002234,2763.4,2763.3,9.66399]
[1724506976468,1.14033581,2763.4,2763.3,13.28285]